bitfinex-derivatives/quotes_BTCF0:USTF0_20260214
["timestamp","ask_amount","ask_price","bid_price","bid_amount"]
[1771087251296,0.01448,69582.0,69571.0,0.028858]
[1771087251496,0.014377,69580.0,69571.0,0.01448]
[1771087253692,0.01448,69582.0,69571.0,0.01448]
[1771087253693,0.09519528,69582.0,69571.0,0.01448]
[1771087253898,0.014377,69577.0,69571.0,0.01448]
[1771087254198,0.014377,69578.0,69571.0,0.01448]
[1771087254394,0.014377,69577.0,69571.0,0.01448]
[1771087255200,0.014377,69576.0,69571.0,0.01448]
[1771087255801,0.014378,69575.0,69570.0,0.01448]
[1771087256094,0.08071528,69578.0,69570.0,0.01448]
[1771087256297,0.014377,69577.0,69570.0,0.01448]
[1771087257104,0.014378,69576.0,69570.0,0.01448]
[1771087257299,0.014378,69574.0,69570.0,0.01448]
[1771087257799,0.014378,69573.0,69570.0,0.01448]
[1771087258302,0.014378,69574.0,69570.0,0.01448]
[1771087258798,0.014378,69574.0,69563.0,0.14384]
[1771087259001,0.014378,69573.0,69564.0,0.02886]
[1771087259302,0.014378,69572.0,69564.0,0.02886]
[1771087260099,0.014378,69571.0,69564.0,0.01448]
[1771087260297,0.014379,69569.0,69564.0,0.01448]
[1771087260698,0.01438,69565.0,69564.0,0.01448]
[1771087260897,0.09509428,69569.0,69564.0,0.01448]
[1771087260898,0.014379,69566.0,69564.0,0.01448]
[1771087261096,0.014379,69567.0,69561.0,0.01448]
[1771087261296,0.01438,69562.0,69561.0,0.01448]
[1771087261602,0.01438,69563.0,69555.0,0.028764]
[1771087261807,0.01438,69563.0,69556.0,0.01448]
[1771087262000,0.01438,69562.0,69556.0,0.01448]
[1771087262195,0.01438,69561.0,69556.0,0.01448]
[1771087262501,0.3438,69606.0,69554.0,0.014382]
[1771087262502,0.01438,69562.0,69554.0,0.01448]
[1771087262701,0.01448,69563.0,69555.0,0.014381]
[1771087262898,0.01448,69563.0,69556.0,0.014381]
[1771087263102,0.02876,69565.0,69556.0,0.014381]
[1771087263292,0.01438,69562.0,69554.0,0.028862]
[1771087263600,0.014381,69559.0,69555.0,0.01448]
[1771087263904,0.01438,69561.0,69549.0,0.00012849]
[1771087263905,0.014381,69557.0,69549.0,0.00012849]
[1771087264204,0.15822,69566.0,69549.0,0.0798937]
[1771087264405,0.01438,69564.0,69556.0,0.014381]
[1771087264807,0.01438,69564.0,69554.0,0.014382]
[1771087264993,0.01438,69562.0,69554.0,0.014382]
[1771087265303,0.01448,69561.0,69554.0,0.014382]
[1771087265605,0.01448,69561.0,69553.0,0.01448]
[1771087265799,0.014381,69559.0,69553.0,0.01448]
[1771087266804,0.014381,69558.0,69553.0,0.01448]
[1771087266999,0.09519528,69561.0,69549.0,0.00012849]
[1771087267202,0.014382,69555.0,69550.0,0.01448]
[1771087267398,0.014382,69555.0,69549.0,0.00012849]
[1771087267399,0.014382,69553.0,69549.0,0.00012849]
[1771087267799,0.014383,69551.0,69549.0,0.00012849]
[1771087268398,0.014382,69554.0,69549.0,0.00012849]
[1771087268995,0.01448,69557.0,69549.0,0.00012849]
[1771087269204,0.01448,69557.0,69551.0,0.014382]
[1771087269901,0.01448,69557.0,69550.0,0.014383]
[1771087270096,0.01448,69557.0,69549.0,0.00012849]
[1771087270303,0.014382,69555.0,69549.0,0.00012849]
[1771087270805,0.014381,69556.0,69549.0,0.00012849]
[1771087271001,0.014382,69553.0,69549.0,0.00012849]
[1771087271204,0.01448,69552.0,69549.0,0.00012849]
[1771087272407,0.01448,69552.0,69545.0,0.014384]
[1771087272607,0.01448,69554.0,69552.0,0.014382]
[1771087272801,0.01448,69555.0,69550.0,0.014383]
[1771087273511,0.00016359,69554.0,69548.0,0.028766]
[1771087273803,0.00016359,69554.0,69548.0,0.014383]
[1771087274010,0.01448,69556.0,69549.0,0.014383]
[1771087274507,0.028862,69556.0,69548.0,0.014383]
[1771087274708,0.01448,69556.0,69547.0,0.014383]
[1771087274907,0.01448,69556.0,69551.0,0.014382]
[1771087276307,0.4268791,69600.0,69543.0,0.08502938]
[1771087276610,0.01438,69561.0,69554.0,0.014382]
[1771087276811,0.01448,69562.0,69554.0,0.028862]
[1771087277305,0.01448,69562.0,69556.0,0.014381]
[1771087277512,0.01448,69562.0,69557.0,0.014381]
[1771087278006,0.02886,69562.0,69554.0,0.028862]
[1771087278606,0.02886,69562.0,69554.0,0.043244]
[1771087279011,0.01448,69562.0,69554.0,0.043244]
[1771087279206,0.01448,69562.0,69555.0,0.014382]
[1771087279609,0.01448,69562.0,69557.0,0.014381]
[1771087282113,0.01448,69562.0,69556.0,0.014381]
[1771087283111,0.01448,69562.0,69557.0,0.014381]
[1771087283414,0.10167725,69568.0,69560.0,0.014381]
[1771087283415,0.01448,69563.0,69560.0,0.014381]
[1771087283621,0.01448,69563.0,69559.0,0.014381]
[1771087285212,0.14388,69568.0,69564.0,0.01438]
[1771087285417,0.158256,69581.0,69570.0,0.014378]
[1771087285613,0.014377,69579.0,69569.0,0.014379]
[1771087285814,0.028857,69580.0,69569.0,0.014379]
[1771087285815,0.028857,69578.0,69569.0,0.014379]
[1771087286013,0.028857,69578.0,69568.0,0.028859]
[1771087286220,0.014377,69577.0,69568.0,0.01448]
[1771087287122,0.014377,69576.0,69568.0,0.01448]
[1771087287417,0.028857,69578.0,69568.0,0.028859]
[1771087287617,0.028857,69578.0,69569.0,0.014379]
[1771087288615,0.028857,69578.0,69569.0,0.028758]
[1771087288816,0.028857,69578.0,69569.0,0.014379]
[1771087289024,0.01448,69578.0,69574.0,0.014378]
[1771087289321,0.01448,69579.0,69573.0,0.014378]
[1771087289621,0.14388,69582.0,69574.0,0.014378]
[1771087289925,0.014376,69583.0,69573.0,0.014378]
[1771087290116,0.01448,69582.0,69574.0,0.014378]
[1771087290312,0.14388,69585.0,69576.0,0.014377]
[1771087290518,0.014375,69589.0,69578.0,0.014377]
[1771087290823,0.014375,69589.0,69578.0,0.028857]
[1771087290824,0.028855,69588.0,69578.0,0.028857]
[1771087291626,0.014374,69591.0,69579.0,0.014377]
[1771087291923,0.01448,69590.0,69581.0,0.014376]
[1771087292124,0.028855,69590.0,69580.0,0.014376]
[1771087292425,0.028855,69590.0,69581.0,0.01448]
[1771087292718,0.014375,69590.0,69581.0,0.01448]
[1771087293018,0.014376,69583.0,69579.0,0.01448]
[1771087293222,0.014376,69583.0,69571.0,0.158258]
[1771087293223,0.08729825,69578.0,69571.0,0.14388]
[1771087293417,0.10167525,69578.0,69572.0,0.01448]
[1771087293723,0.014377,69577.0,69572.0,0.01448]
[1771087294315,0.014377,69578.0,69572.0,0.01448]
[1771087294522,0.028754,69578.0,69572.0,0.01448]
[1771087294726,0.014377,69577.0,69572.0,0.01448]
[1771087295515,0.014377,69577.0,69564.0,0.01438]
[1771087295516,0.01438,69566.0,69553.0,0.014382]
[1771087295820,0.158216,69584.0,69554.0,0.15832]
[1771087295821,0.01438,69565.0,69554.0,0.15832]
[1771087296023,0.02876,69565.0,69556.0,0.014381]
[1771087296217,0.01438,69564.0,69557.0,0.01448]
[1771087297916,0.02876,69564.0,69557.0,0.01448]
[1771087298117,0.01438,69565.0,69557.0,0.028861]
[1771087298426,0.01438,69564.0,69557.0,0.01448]
[1771087298726,0.014379,69569.0,69560.0,0.01438]
[1771087298923,0.014378,69573.0,69561.0,0.02886]
[1771087299122,0.014378,69573.0,69554.0,0.14384]
[1771087299123,0.014379,69566.0,69562.0,0.01448]
[1771087299322,0.08729825,69569.0,69563.0,0.01448]
[1771087299825,0.014379,69569.0,69563.0,0.01448]
[1771087300228,0.028859,69570.0,69563.0,0.01448]
[1771087300825,0.043238,69570.0,69563.0,0.01448]
[1771087301027,0.014379,69569.0,69563.0,0.01448]
[1771087301418,0.014377,69576.0,69567.0,0.014379]
[1771087301719,0.01448,69575.0,69567.0,0.043238]
[1771087302120,0.01448,69575.0,69567.0,0.028859]
[1771087302320,0.01448,69575.0,69568.0,0.014379]
[1771087302721,0.01448,69575.0,69567.0,0.028859]
[1771087302722,0.01448,69575.0,69567.0,0.01448]
[1771087303020,0.028858,69575.0,69567.0,0.01448]
[1771087303728,0.10113036,69571.0,69564.0,0.01448]
[1771087304724,0.028756,69572.0,69564.0,0.01448]
[1771087305026,0.028858,69571.0,69564.0,0.01448]
[1771087305621,0.014379,69570.0,69564.0,0.01448]
[1771087306121,0.014379,69570.0,69563.0,0.01448]
[1771087306628,0.10123236,69571.0,69563.0,0.01448]
[1771087306925,0.01438,69566.0,69563.0,0.01448]
[1771087307825,0.01438,69566.0,69561.0,0.01448]
[1771087308428,0.01438,69565.0,69561.0,0.01448]
[1771087308728,0.014379,69570.0,69561.0,0.01448]
[1771087308930,0.014379,69568.0,69561.0,0.01448]
[1771087309332,0.014379,69569.0,69561.0,0.01448]
[1771087309529,0.014379,69568.0,69561.0,0.01448]
[1771087310431,0.014379,69567.0,69561.0,0.01448]
[1771087311029,0.014379,69566.0,69561.0,0.01448]
[1771087311333,0.014379,69567.0,69561.0,0.01448]
[1771087311928,0.01438,69561.0,69554.0,0.14384]
[1771087312133,0.01438,69561.0,69555.0,0.01448]
[1771087312825,0.028761,69561.0,69555.0,0.01448]
[1771087313026,0.014381,69560.0,69555.0,0.01448]
[1771087313726,0.014381,69559.0,69555.0,0.01448]
[1771087314336,0.014381,69560.0,69555.0,0.01448]
[1771087314534,0.014381,69559.0,69555.0,0.01448]
[1771087315328,0.01438,69561.0,69555.0,0.028862]
[1771087315634,0.01448,69565.0,69555.0,0.028862]
[1771087315825,0.158218,69573.0,69563.0,0.01438]
[1771087315826,0.014379,69570.0,69563.0,0.01438]
[1771087316028,0.01448,69568.0,69562.0,0.01438]
[1771087316229,0.014379,69567.0,69560.0,0.01438]
[1771087316537,0.01438,69562.0,69559.0,0.01448]
[1771087316936,0.01438,69566.0,69554.0,0.14384]
[1771087316937,0.02886,69564.0,69554.0,0.14384]
[1771087317138,0.02886,69564.0,69550.0,0.014383]
[1771087317139,0.014381,69558.0,69555.0,0.01448]
[1771087317333,0.028762,69558.0,69555.0,0.01448]
[1771087317533,0.014381,69557.0,69555.0,0.01448]
[1771087318432,0.014381,69557.0,69554.0,0.01448]
[1771087318633,0.028861,69560.0,69549.0,0.14384]
[1771087318829,0.014382,69556.0,69550.0,0.01448]
[1771087319033,0.014382,69556.0,69550.0,0.028863]
[1771087319238,0.01448,69560.0,69552.0,0.014382]
[1771087319437,0.01448,69560.0,69554.0,0.014382]
[1771087319631,0.01448,69560.0,69553.0,0.014382]
[1771087320333,0.14384,69565.0,69554.0,0.01448]
[1771087320534,0.014379,69566.0,69554.0,0.01448]
[1771087320535,0.01448,69566.0,69561.0,0.01438]
[1771087320839,0.01448,69568.0,69566.0,0.014379]
[1771087321041,0.014378,69572.0,69564.0,0.01438]
[1771087321242,0.014378,69571.0,69564.0,0.01438]
[1771087321433,0.01448,69570.0,69563.0,0.01438]
[1771087321633,0.01438,69566.0,69560.0,0.01448]
[1771087322042,0.01438,69565.0,69560.0,0.01448]
[1771087324247,0.01448,69567.0,69564.0,0.01438]
[1771087324546,0.01448,69567.0,69562.0,0.01438]
[1771087324732,0.01448,69567.0,69563.0,0.01438]
[1771087325133,0.01448,69567.0,69562.0,0.01438]
[1771087325334,0.014379,69566.0,69560.0,0.01448]
[1771087327240,0.01448,69567.0,69560.0,0.01448]
[1771087327448,0.01448,69567.0,69561.0,0.01438]
[1771087327740,0.08675236,69588.0,69579.0,0.014377]
[1771087327948,0.14388,69591.0,69574.0,0.10447051]
[1771087328247,0.01448,69590.0,69584.0,0.014375]
[1771087328641,0.028855,69590.0,69585.0,0.014375]
[1771087328845,0.028855,69590.0,69586.0,0.014375]
[1771087329039,0.014375,69589.0,69584.0,0.014375]
[1771087329245,0.01448,69590.0,69585.0,0.014375]
[1771087329442,0.01448,69590.0,69585.0,0.02875]
[1771087329644,0.01448,69589.0,69586.0,0.014375]
[1771087330247,0.01448,69589.0,69587.0,0.014375]
[1771087330451,0.01448,69589.0,69584.0,0.028751]
[1771087330750,0.01448,69589.0,69585.0,0.014375]
[1771087331243,0.01448,69589.0,69586.0,0.014375]
[1771087331442,0.01448,69589.0,69581.0,0.014376]
[1771087331443,0.028855,69589.0,69587.0,0.014375]
[1771087331646,0.01448,69589.0,69582.0,0.014375]
[1771087331847,0.014375,69586.0,69581.0,0.014375]
[1771087332041,0.014375,69585.0,69581.0,0.014375]
[1771087332243,0.014375,69585.0,69580.0,0.01448]
[1771087332244,0.014375,69585.0,69582.0,0.014375]
[1771087332547,0.014375,69585.0,69581.0,0.014375]
[1771087333047,0.014375,69585.0,69582.0,0.014375]
[1771087333252,0.014375,69585.0,69581.0,0.014375]
[1771087333448,0.014376,69581.0,69574.0,0.014378]
[1771087333655,0.014377,69579.0,69575.0,0.01448]
[1771087333852,0.014377,69578.0,69572.0,0.028756]
[1771087334052,0.014377,69577.0,69573.0,0.172698]
[1771087334455,0.014377,69579.0,69574.0,0.014378]
[1771087334755,0.014377,69578.0,69573.0,0.172698]
[1771087334948,0.014377,69577.0,69573.0,0.15832]
[1771087335149,0.014377,69576.0,69574.0,0.01448]
[1771087335349,0.014377,69576.0,69575.0,0.01448]
[1771087336452,0.01438,69566.0,69559.0,0.14384]
[1771087336754,0.01438,69565.0,69560.0,0.028861]
[1771087337252,0.01438,69565.0,69560.0,0.014381]
[1771087337554,0.01438,69564.0,69561.0,0.01448]
[1771087338147,0.01438,69565.0,69561.0,0.01448]
[1771087338345,0.014379,69567.0,69561.0,0.04324]
[1771087338548,0.014379,69566.0,69561.0,0.02886]
[1771087338752,0.028759,69566.0,69561.0,0.02886]
[1771087338954,0.01438,69565.0,69561.0,0.01548]
[1771087339152,0.014379,69566.0,69561.0,0.01548]
[1771087339342,0.014379,69566.0,69561.0,0.02986]
[1771087339547,0.014379,69566.0,69561.0,0.01548]
[1771087339741,0.01438,69565.0,69561.0,0.01548]
[1771087339954,0.01438,69565.0,69560.0,0.015381]
[1771087339955,0.01438,69565.0,69562.0,0.01448]
[1771087340254,0.01438,69564.0,69562.0,0.01448]
[1771087340649,0.01438,69563.0,69562.0,0.01448]
[1771087340952,0.01438,69564.0,69562.0,0.01448]
[1771087341158,0.01438,69564.0,69557.0,0.014381]
[1771087341357,0.01438,69563.0,69559.0,0.014381]
[1771087341558,0.01438,69566.0,69561.0,0.01438]
[1771087341857,0.01438,69566.0,69562.0,0.01448]
[1771087342953,0.014379,69567.0,69562.0,0.01448]
[1771087343559,0.014379,69567.0,69562.0,0.02886]
[1771087343953,0.014379,69566.0,69562.0,0.01448]
[1771087344150,0.014379,69566.0,69558.0,0.014381]
[1771087344358,0.01438,69564.0,69559.0,0.01448]
[1771087344558,0.01438,69564.0,69559.0,0.028861]
[1771087344963,0.01438,69564.0,69559.0,0.01448]
[1771087345158,0.014379,69566.0,69560.0,0.01448]
[1771087345359,0.014379,69566.0,69560.0,0.02886]
[1771087345555,0.028859,69568.0,69560.0,0.02886]
[1771087345556,0.11453043,69568.0,69562.0,0.01438]
[1771087345760,0.028859,69568.0,69562.0,0.01438]
[1771087347159,0.014379,69567.0,69561.0,0.01438]
[1771087347852,0.014379,69566.0,69560.0,0.028861]
[1771087348059,0.014379,69567.0,69561.0,0.01438]
[1771087349056,0.028859,69568.0,69562.0,0.01438]
[1771087349561,0.014379,69567.0,69560.0,0.028861]
[1771087349759,0.028859,69568.0,69560.0,0.01448]
[1771087349954,0.01438,69565.0,69559.0,0.01448]
[1771087350360,0.02876,69565.0,69559.0,0.01448]
[1771087350556,0.01438,69563.0,69559.0,0.01448]
[1771087352862,0.01438,69562.0,69559.0,0.01448]
[1771087353064,0.014381,69560.0,69559.0,0.01448]
[1771087354063,0.014379,69566.0,69559.0,0.01448]
[1771087354259,0.01438,69564.0,69559.0,0.028861]
[1771087354459,0.014379,69566.0,69559.0,0.028861]
[1771087354654,0.01438,69564.0,69559.0,0.01448]
[1771087355555,0.01438,69565.0,69559.0,0.01448]
[1771087356069,0.01438,69563.0,69559.0,0.01448]
[1771087357265,0.014381,69560.0,69559.0,0.01448]
[1771087357464,0.01438,69563.0,69559.0,0.01448]
[1771087357661,0.014381,69560.0,69559.0,0.01448]
[1771087357863,0.014381,69559.0,69558.0,0.01448]
[1771087358065,0.014381,69560.0,69558.0,0.01448]
[1771087358966,0.014381,69559.0,69557.0,0.01448]
[1771087359366,0.014381,69558.0,69557.0,0.01448]
[1771087359570,0.014381,69561.0,69557.0,0.01448]
[1771087359571,0.014381,69560.0,69557.0,0.01448]
[1771087361868,0.01438,69561.0,69557.0,0.01448]
[1771087362172,0.01438,69564.0,69557.0,0.01448]
[1771087362868,0.014381,69560.0,69557.0,0.01448]
[1771087363266,0.01438,69561.0,69557.0,0.01448]
[1771087363468,0.01438,69562.0,69557.0,0.01448]
[1771087363668,0.01438,69561.0,69557.0,0.01448]
[1771087363970,0.014381,69560.0,69557.0,0.01448]
[1771087364173,0.01438,69561.0,69557.0,0.01448]
[1771087365074,0.01438,69563.0,69557.0,0.028861]
[1771087365266,0.02886,69565.0,69557.0,0.028861]
[1771087365666,0.01438,69562.0,69557.0,0.01448]
[1771087365871,0.014381,69561.0,69557.0,0.01448]
[1771087366370,0.028762,69561.0,69557.0,0.01448]
[1771087366571,0.01438,69564.0,69557.0,0.01448]
[1771087366970,0.01438,69562.0,69557.0,0.01448]
[1771087367172,0.014381,69561.0,69557.0,0.01448]
[1771087367476,0.014381,69560.0,69557.0,0.01448]
[1771087367875,0.01438,69564.0,69557.0,0.01448]
[1771087368179,0.014381,69561.0,69557.0,0.01448]
[1771087368571,0.01438,69562.0,69557.0,0.01448]
[1771087368974,0.014381,69561.0,69557.0,0.01448]
[1771087370380,0.01438,69562.0,69557.0,0.01448]
[1771087370576,0.014381,69561.0,69557.0,0.01448]
[1771087371885,0.014381,69560.0,69557.0,0.01448]
[1771087372281,0.014381,69561.0,69557.0,0.01448]
[1771087372982,0.01438,69564.0,69557.0,0.01448]
[1771087373483,0.028762,69561.0,69557.0,0.01448]
[1771087373684,0.014381,69560.0,69557.0,0.01448]
[1771087374285,0.01438,69561.0,69557.0,0.01448]
[1771087375685,0.014381,69557.0,69552.0,0.14388]
[1771087375980,0.028762,69558.0,69553.0,0.01448]
[1771087376181,0.028762,69558.0,69554.0,0.01448]
[1771087376481,0.014381,69557.0,69551.0,0.014382]
[1771087376684,0.014381,69557.0,69552.0,0.01448]
[1771087377285,0.014381,69557.0,69553.0,0.01448]
[1771087378590,0.014382,69555.0,69553.0,0.01448]
[1771087380495,0.014382,69555.0,69551.0,0.01448]
[1771087380884,0.028861,69558.0,69551.0,0.028862]
[1771087381389,0.028861,69558.0,69552.0,0.014382]
[1771087382086,0.014379,69567.0,69557.0,0.014381]
[1771087382391,0.028859,69566.0,69559.0,0.014381]
[1771087382692,0.028859,69566.0,69552.0,0.014382]
[1771087382693,0.14388,69571.0,69569.0,0.014379]
[1771087382991,0.01448,69575.0,69573.0,0.014378]
[1771087383291,0.01448,69575.0,69559.0,0.14388]
[1771087383292,0.014375,69585.0,69576.0,0.014377]
[1771087383490,0.014376,69584.0,69577.0,0.014377]
[1771087383690,0.014376,69584.0,69576.0,0.01448]
[1771087383990,0.014376,69584.0,69577.0,0.014377]
[1771087384193,0.028856,69583.0,69576.0,0.028857]
[1771087385186,0.014375,69587.0,69576.0,0.028857]
[1771087385187,0.028855,69585.0,69578.0,0.014377]
[1771087385387,0.014376,69584.0,69576.0,0.028857]
[1771087385788,0.014376,69584.0,69577.0,0.014377]
[1771087385988,0.01448,69585.0,69576.0,0.028857]
[1771087385989,0.01448,69585.0,69580.0,0.014376]
[1771087386296,0.028856,69585.0,69578.0,0.014377]
[1771087386487,0.01448,69585.0,69578.0,0.014377]
[1771087386797,0.01448,69585.0,69579.0,0.014377]
[1771087386989,0.014376,69584.0,69577.0,0.014377]
[1771087387182,0.014376,69585.0,69578.0,0.014377]
[1771087387392,0.014376,69585.0,69579.0,0.01448]
[1771087387994,0.014376,69584.0,69579.0,0.01448]
[1771087389297,0.014376,69585.0,69579.0,0.01448]
[1771087389685,0.014375,69586.0,69579.0,0.01448]
[1771087389886,0.014376,69584.0,69579.0,0.01448]
[1771087390690,0.014376,69582.0,69579.0,0.01448]
[1771087390893,0.014376,69582.0,69561.0,0.10690675]
[1771087390894,0.1042393,69582.0,69561.0,0.10690675]
[1771087391094,0.014377,69576.0,69569.0,0.014379]
[1771087391298,0.014377,69576.0,69570.0,0.01448]
[1771087391499,0.014377,69578.0,69562.0,0.23636675]
[1771087391500,0.014378,69573.0,69563.0,0.01438]
[1771087391798,0.014378,69573.0,69566.0,0.014379]
[1771087391999,0.014378,69572.0,69566.0,0.014379]
[1771087392201,0.014378,69572.0,69567.0,0.01448]
[1771087392390,0.014378,69572.0,69568.0,0.01448]
[1771087392591,0.014378,69572.0,69566.0,0.014379]
[1771087392901,0.014378,69572.0,69567.0,0.01448]
[1771087393102,0.014378,69571.0,69567.0,0.01448]
[1771087393995,0.014378,69573.0,69568.0,0.01448]
[1771087394602,0.014377,69576.0,69568.0,0.028859]
[1771087394895,0.014377,69578.0,69572.0,0.014378]
[1771087395492,0.01448,69579.0,69572.0,0.014378]
[1771087395695,0.028857,69579.0,69573.0,0.014378]
[1771087396199,0.01448,69579.0,69573.0,0.014378]
[1771087399102,0.014377,69577.0,69570.0,0.028859]
[1771087399698,0.08539431,69577.0,69570.0,0.01448]
[1771087399999,0.014378,69572.0,69565.0,0.014379]
[1771087400300,0.014378,69572.0,69565.0,0.028859]
[1771087400499,0.014378,69571.0,69565.0,0.028859]
[1771087401800,0.014378,69571.0,69565.0,0.01448]
[1771087402600,0.01448,69573.0,69565.0,0.01448]
[1771087402795,0.01448,69573.0,69567.0,0.014379]
[1771087403198,0.01448,69573.0,69566.0,0.014379]
[1771087403398,0.01448,69573.0,69567.0,0.014379]
[1771087403903,0.01448,69573.0,69568.0,0.014379]
[1771087404100,0.01448,69573.0,69561.0,0.01438]
[1771087404101,0.09976731,69596.0,69578.0,0.08989603]
[1771087404408,0.01448,69592.0,69578.0,0.01448]
[1771087404605,0.014375,69590.0,69583.0,0.014376]
[1771087405107,0.01448,69589.0,69583.0,0.014376]
[1771087405301,0.028855,69589.0,69582.0,0.014376]
[1771087405498,0.04323,69589.0,69582.0,0.014376]
[1771087405901,0.014374,69590.0,69583.0,0.014376]
[1771087406102,0.014375,69588.0,69582.0,0.014376]
[1771087406293,0.028855,69589.0,69582.0,0.028752]
[1771087406495,0.08539431,69608.0,69600.0,0.014372]
[1771087406805,0.01448,69607.0,69600.0,0.014372]
[1771087407004,0.028851,69607.0,69600.0,0.014372]
[1771087407595,0.03546227,69623.0,69600.0,0.014372]
[1771087407596,0.08539431,69616.0,69600.0,0.014372]
[1771087407902,0.014371,69607.0,69600.0,0.014372]
[1771087408305,0.028851,69607.0,69600.0,0.014372]
[1771087410911,0.014371,69606.0,69600.0,0.014372]
[1771087412307,0.014369,69616.0,69606.0,0.014371]
[1771087412605,0.014369,69616.0,69608.0,0.01437]
[1771087413012,0.01448,69617.0,69609.0,0.01437]
[1771087413513,0.014369,69615.0,69609.0,0.01437]
[1771087414014,0.014369,69616.0,69609.0,0.01437]
[1771087414211,0.01448,69617.0,69609.0,0.01437]
[1771087414412,0.014369,69616.0,69608.0,0.014371]
[1771087414707,0.08539431,69631.0,69610.0,0.08989603]
[1771087414910,0.01448,69632.0,69623.0,0.014368]
[1771087415110,0.01448,69631.0,69623.0,0.014368]
[1771087415306,0.01448,69630.0,69624.0,0.014367]
[1771087415614,0.01448,69629.0,69624.0,0.014367]
[1771087415813,0.01448,69631.0,69625.0,0.014367]
[1771087416409,0.01448,69631.0,69624.0,0.014367]
[1771087417406,0.01448,69631.0,69625.0,0.014367]
[1771087417813,0.01448,69631.0,69623.0,0.014368]
[1771087418017,0.17375941,69630.0,69623.0,0.014368]
[1771087418603,0.01448,69631.0,69623.0,0.014368]
[1771087418803,0.01448,69631.0,69585.0,0.42962714]
[1771087418804,0.08539431,69624.0,69613.0,0.01437]
[1771087419008,0.014368,69621.0,69614.0,0.01444]
[1771087419211,0.014369,69619.0,69614.0,0.01444]
[1771087419414,0.014368,69619.0,69614.0,0.01444]
[1771087419804,0.01444,69623.0,69616.0,0.014369]
[1771087420207,0.028808,69623.0,69616.0,0.014369]
[1771087420409,0.01444,69623.0,69616.0,0.014369]
[1771087420610,0.18819941,69623.0,69614.0,0.028809]
[1771087420812,0.18819941,69623.0,69616.0,0.014369]
[1771087421418,0.17375941,69623.0,69616.0,0.028809]
[1771087421619,0.18812741,69623.0,69616.0,0.01444]
[1771087422016,0.18812741,69623.0,69596.0,0.08969509]
[1771087422017,0.08859803,69614.0,69596.0,0.08969509]
[1771087422220,0.01437,69611.0,69604.0,0.014372]
[1771087422415,0.01437,69610.0,69605.0,0.01444]
[1771087422609,0.01437,69612.0,69604.0,0.014371]
[1771087422811,0.01437,69611.0,69603.0,0.158132]
[1771087423015,0.01437,69610.0,69603.0,0.158132]
[1771087423323,0.10296803,69614.0,69605.0,0.014371]
[1771087423511,0.01444,69625.0,69615.0,0.014369]
[1771087423817,0.14376,69633.0,69621.0,0.014368]
[1771087424025,0.01444,69632.0,69619.0,0.01444]
[1771087424317,0.01444,69631.0,69625.0,0.014367]
[1771087424517,0.01444,69631.0,69628.0,0.014367]
[1771087424718,0.01444,69631.0,69627.0,0.014367]
[1771087424920,0.01444,69632.0,69626.0,0.014367]
[1771087425117,0.01444,69632.0,69627.0,0.014367]
[1771087425421,0.01444,69634.0,69627.0,0.014367]
[1771087425620,0.01444,69634.0,69626.0,0.014367]
[1771087426722,0.0180093,69634.0,69626.0,0.014367]
[1771087426925,0.0036443,69634.0,69627.0,0.014367]
[1771087427131,0.0036443,69634.0,69628.0,0.014366]
[1771087427631,0.0036443,69634.0,69626.0,0.014367]
[1771087428127,0.0036443,69634.0,69627.0,0.014367]
[1771087428328,0.0036443,69634.0,69628.0,0.014366]
[1771087428530,0.0036443,69634.0,69630.0,0.014366]
[1771087428730,0.01444,69634.0,69629.0,0.014366]
[1771087429231,0.85332977,69715.0,69620.0,0.09426118]
[1771087429232,0.0958236,69656.0,69641.0,0.014364]
[1771087429424,0.0958236,69656.0,69620.0,0.86297975]
[1771087429425,0.01444,69662.0,69642.0,0.10870118]
[1771087429737,0.01444,69665.0,69652.0,0.014362]
[1771087429940,0.01436,69662.0,69653.0,0.028801]
[1771087430128,0.01436,69662.0,69653.0,0.12306218]
[1771087430328,0.01436,69663.0,69654.0,0.014361]
[1771087430525,0.014359,69663.0,69654.0,0.014361]
[1771087430838,0.014359,69663.0,69655.0,0.014361]
[1771087431136,0.01436,69662.0,69653.0,0.01444]
[1771087431334,0.01436,69659.0,69653.0,0.01444]
[1771087431634,0.014361,69654.0,69646.0,0.014363]
[1771087431830,0.014361,69653.0,69647.0,0.1582]
[1771087432232,0.014362,69652.0,69647.0,0.14368974]
[1771087432426,0.014361,69654.0,69647.0,0.14368974]
[1771087432634,0.01444,69656.0,69652.0,0.014361]
[1771087432940,0.1101826,69667.0,69654.0,0.014361]
[1771087432941,0.01436,69661.0,69654.0,0.014361]
[1771087433128,0.01436,69660.0,69652.0,0.028801]
[1771087433329,0.01436,69658.0,69652.0,0.01444]
[1771087433527,0.1102636,69661.0,69647.0,0.014363]
[1771087433732,0.014361,69657.0,69652.0,0.01444]
[1771087433936,0.01436,69658.0,69652.0,0.01444]
[1771087434137,0.01444,69660.0,69656.0,0.014361]
[1771087434438,0.01444,69661.0,69652.0,0.12306318]
[1771087434633,0.01444,69661.0,69658.0,0.01436]
[1771087434842,0.01444,69665.0,69660.0,0.01436]
[1771087435234,0.01444,69665.0,69658.0,0.02872]
[1771087435540,0.014359,69663.0,69656.0,0.028801]
[1771087436038,0.014359,69664.0,69657.0,0.01436]
[1771087437134,0.028799,69665.0,69658.0,0.01436]
[1771087437538,0.014359,69665.0,69658.0,0.01436]
[1771087437837,0.01444,69666.0,69662.0,0.01436]
[1771087438237,0.01444,69666.0,69656.0,0.10870118]